Cogmind - Beta 17 @@@ ROGUE MODE // 2026.07.05 @ 16:10:48 Player: pinbox Result: Self-destructed Performance ------------- Evolutions (2) 1000 Regions Visited (3) 600 Robots Destroyed (12) 60 Value Destroyed (447) 447 Prototype IDs (0) 0 Alien Tech Used (0) 0 Bonus (0) 0 TOTAL SCORE: 2107 Bonus ------- None Cogmind --------- Core Integrity 550/550 Matter 273/300 Energy 200/200 System Corruption 0% Temperature Cool (0) Movement Treading (160) Location -8/Materials Parts ------- > --- POWER (1) -------- Subdweller Power Source > --- PROPULSION (3) --- Spiked Treads Spiked Treads > --- UTILITY (5) ------ Large Storage Unit Seismic Detector > --- WEAPON (2) ------- Subdweller Beam Cannon Subdweller Machine Gun > --- INVENTORY (15) --- Subdweller Power Source Subdweller Power Source Subdweller Monowheel Subdweller Monowheel Subdweller Monowheel Subdweller Monowheel Subdweller Monowheel Small Storage Unit Subdweller Optics Subdweller Optics Makeshift Light Armor Plating Makeshift Kinetic Plating Subdweller Laser Datajack Makeshift Spear Peak State ------------ > --- POWER ------------ Subdweller Power Source > --- PROPULSION ------- Spiked Treads Spiked Treads > --- UTILITY ---------- Large Storage Unit Makeshift Light Armor Plating > --- WEAPON ----------- Subdweller Machine Gun Battle Cannon > --- INVENTORY -------- Subdweller Power Source Subdweller Power Source Subdweller Monowheel Subdweller Monowheel Subdweller Monowheel Subdweller Monowheel Small Storage Unit Subdweller Optics Subdweller Optics Makeshift Kinetic Plating Subdweller Laser Subdweller Beam Cannon Datajack Makeshift Spear [Rating: 18] Favorites ----------- Power Light Ion Engine Engine Light Ion Engine Propulsion Light Treads Treads Light Treads Utility Seismic Detector Device Seismic Detector Storage Large Storage Unit Protection Makeshift Light Armor Plating Weapon Battle Cannon Energy Gun Subdweller Laser Energy Cannon Subdweller Beam Cannon Ballistic Gun Subdweller Machine Gun Ballistic Cannon Battle Cannon Build | -11 -10 -10 -8 ------- Run | Yrd Mat Sub Mat Slots Evolved 4 | . . . 4 Power . | . . . . Propulsion 1 | . . . 1 Utility 3 | . . . 3 Weapon . | . . . . Parts Attached 20 | 7 . 13 . Power 2 | 1 . 1 . Engine 2 | 1 . 1 . Core . | . . . . Reactor . | . . . . Propulsion 5 | 2 . 3 . Treads 5 | 2 . 3 . Leg . | . . . . Wheel . | . . . . Hover . | . . . . Flight . | . . . . Utility 4 | 2 . 2 . Device 1 | 1 . . . Storage 2 | 1 . 1 . Processor . | . . . . Hackware . | . . . . Protection 1 | . . 1 . Artifact . | . . . . Weapon 9 | 2 . 7 . Energy Gun 3 | 2 . 1 . Energy Cannon 1 | . . 1 . Ballistic Gun 3 | . . 3 . Ballistic Cannon 2 | . . 2 . Launcher . | . . . . Special Weapon . | . . . . Impact Weapon . | . . . . Slashing Weapon . | . . . . Piercing Weapon . | . . . . Special Melee Weapon . | . . . . Unidentified Prototypes . | . . . . Parts Lost 6 | . . 6 . Power 1 | . . 1 . Propulsion 2 | . . 2 . Utility . | . . . . Weapon 3 | . . 3 . Highest Loss Streak 2 | . . 2 . To Critical Strikes . | . . . . Average Backups 12 | 2 5 13 . Power 1 | . 1 1 . Propulsion 3 | 1 2 4 . Utility 3 | . . 4 . Weapon 2 | . 1 2 . Tool/Special . | . . . . Unused Backups 18 | . . 5 13 Power 3 | . . 1 2 Propulsion 7 | . . 2 5 Utility 4 | . . 1 3 Weapon 3 | . . 1 2 Tool/Special 1 | . . . 1 Average Slot Usage (%) 99 | . 100 99 . Engine 13 | . 14 13 . Treads 27 | . 28 27 . Device 13 | . 14 13 . Storage 14 | . 14 14 . Energy Gun 11 | . 28 9 . Energy Cannon 2 | . . 2 . Ballistic Gun 4 | . . 5 . Ballistic Cannon 9 | . . 10 . Peak Build Rating 18 | 7 7 18 . Average Rating 11 | 5 7 12 . On Entrance 7 | . 7 7 15 Avg Prop Armor Cover (%) . | . . . . Naked Turns . | . . . . Heaviest Build 41 | 12 12 41 . Greatest Support 40 | 40 40 40 . Greatest Overweight (x) 1 | . . 1 . Average Overweight (x) . | . . . . Largest Inventory Capacity 15 | 8 8 15 . Average Capacity 14 | 7 8 14 . Most Carried 15 | 3 7 15 . Average Carried 12 | 2 5 13 . Final Capacity 15 | 8 8 15 15 Final Carried 15 | 3 7 15 15 Class Distribution -------------------- 84% | Mutant 15% | Derelict-Mutant Dominant Class ---------------- Mutant | -10/Materials Mutant | -10/Subcaves Mutant | -8/Materials Resources | -11 -10 -10 -8 ----------- Run | Yrd Mat Sub Mat Matter Collected 644 | 215 . 429 . Remotely . | . . . . Salvage Created 376 | 21 . 355 . Parts 29 | 1 . 28 . Haulers Intercepted . | . . . . Recyclers Shooed . | . . . . Parts Field Recycled . | . . . . Retrieved Matter . | . . . . Parts Self-Destructed 4 | . . 4 . Prevented . | . . . . Parts Restored . | . . . . Kills | -11 -10 -10 -8 ------- Run | Yrd Mat Sub Mat Combat Hostiles Destroyed 11 | . . 11 . Guns 4 | . . 4 . Cannons 7 | . . 7 . Classes Destroyed 2 | 1 . 1 . Tunneler 1 | 1 . . . Subdweller 11 | . . 11 . Best Kill Streak 2 | 1 . 2 . Combat Bots Only 2 | . . 2 . Max Kills in Single Turn 1 | 1 . 1 . Gunslinging . | . . . . Exploded . | . . . . Melee . | . . . . Uniques/NPCs Destroyed . | . . . . Combat | -11 -10 -10 -8 -------- Run | Yrd Mat Sub Mat Hostile Shots Fired 79 | . 6 73 . Missed 24 | . 3 21 . Hits 55 | . 3 52 . Projectile 55 | . 3 52 . Critical Strikes 3 | . . 3 . Damage Taken 1287 | . 33 1254 . Core 205 | . . 205 . Absorbed by Shields . | . . . . Core Remaining (%) 59 | 100 . 18 . Volleys Fired 58 | 1 . 57 . Largest 2 | 2 . 2 . Hottest 110 | 80 . 110 . Shots Fired 111 | 2 . 109 . Gun 62 | 2 . 60 . Cannon 49 | . . 49 . Launcher . | . . . . Special . | . . . . Kinetic 73 | . . 73 . Thermal 28 | 1 . 27 . Explosive . | . . . . Electromagnetic 10 | 1 . 9 . Robot Hit Streak 14 | 2 . 14 . Robot Miss Streak 2 | . . 2 . Penetration Max . | . . . . Secondary Targets . | . . . . Shots Hit Robots 62 | 2 . 60 . Core Hits 20 | 1 . 19 . Critical Kills . | . . . . Critical Parts Destroyed . | . . . . Critical Strikes . | . . . . Melee Attacks . | . . . . Impact . | . . . . Slashing . | . . . . Piercing . | . . . . Sneak Attacks . | . . . . Combat Hostiles . | . . . . Follow-up Attacks . | . . . . Damage Inflicted 1122 | 52 . 1070 . Guns 549 | 25 . 524 . Cannons 546 | . . 546 . Explosions 27 | 27 . . . Melee . | . . . . Ramming . | . . . . Kinetic 806 | . . 806 . Thermal 269 | 39 . 230 . Explosive . | . . . . Electromagnetic 47 | 13 . 34 . Impact . | . . . . Slashing . | . . . . Piercing . | . . . . Highest Corruption . | . . . . Average Corruption . | . . . . Corruption Purged . | . . . . Corruption Blocked . | . . . . Overload Shots . | . . . . Overflow Damage . | . . . . Projectiles . | . . . . Explosions . | . . . . Melee . | . . . . Knockbacks 7 | . . 7 . Impact . | . . . . Kinetic 7 | . . 7 . Secondary . | . . . . Self-Inflicted Damage . | . . . . Shots . | . . . . Rammed . | . . . . Targets Rammed . | . . . . Kicked . | . . . . Crushed . | . . . . Highest Temperature 29 | 18 . 29 . Average Temperature 10 | 12 . 10 . Received Heat Transfer 207 | . 18 189 . Siege Activations . | . . . . Martial Activations . | . . . . Shielding Activations . | . . . . Robots Disrupted . | . . . . Combat Hostiles . | . . . . Robots Corrupted . | . . . . Combat Hostiles . | . . . . Parts Fried . | . . . . Impact Corruptions . | . . . . Robots Melted . | . . . . Combat Hostiles . | . . . . Parts Melted 3 | . . 3 . Heat Transferred 374 | 75 . 299 . Parts Sabotaged . | . . . . Parts Stolen . | . . . . Parts Stripped . | . . . . Power Chain Reactions 1 | 1 . . . Alert | -11 -10 -10 -8 ------- Run | Yrd Mat Sub Mat Maximum Alert Level . | . . . . Low Security (%) 100 | 100 100 . . Level 1 . | . . . . Level 2 . | . . . . Level 3 . | . . . . Level 4 . | . . . . Level 5 . | . . . . High Security . | . . . . Max Security . | . . . . Peak Influence 5 | 5 . . . Initial . | . . . . Average . | . . . . Influence Increases 5 | 5 . . . Destroy 0b10 Robot/NC 5 | 5 . . . Influence Decreases 5 | 5 . . . Time Decay 5 | 5 . . . Squads Dispatched . | . . . . Investigation . | . . . . Extermination . | . . . . Reinforcement . | . . . . Assault . | . . . . Garrison . | . . . . Intercept . | . . . . Searches Triggered . | . . . . Construction Impeded . | . . . . Haulers Reinforced . | . . . . Active Scanning Responses . | . . . . Cargo Convoy Interrupts . | . . . . Stealth | -11 -10 -10 -8 --------- Run | Yrd Mat Sub Mat Distress Signals 1 | . 1 . . Communications Jammed . | . . . . Distress Signals . | . . . . Times Spotted 14 | . 2 12 . Peak Tracking Total 3 | . 2 3 . Tactical Retreats . | . . . . Traps | -11 -10 -10 -8 ------- Run | Yrd Mat Sub Mat Traps Triggered 3 | . . 3 . Indirectly . | . . . . Trap Hack Attempts . | . . . . Triggered . | . . . . Disarmed . | . . . . Reprogrammed . | . . . . Reused . | . . . . Traps Extracted . | . . . . Installed . | . . . . Triggered . | . . . . Machines | -11 -10 -10 -8 ---------- Run | Yrd Mat Sub Mat Machines Disabled . | . . . . Max in Single Turn . | . . . . Machines Repaired . | . . . . Machines Dismantled . | . . . . Machines Sabotaged . | . . . . Overloaded Fab Kills . | . . . . Hacking | -11 -10 -10 -8 --------- Run | Yrd Mat Sub Mat Machines Accessed . | . . . . Terminals . | . . . . Fabricators . | . . . . Repair Stations . | . . . . Recycling Units . | . . . . Scanalyzers . | . . . . Garrison Access . | . . . . Total Hacks . | . . . . Successful . | . . . . Failed . | . . . . Catastrophic . | . . . . Database Lockouts . | . . . . Manual . | . . . . Terminals . | . . . . Fabricators . | . . . . Repair Stations . | . . . . Recycling Units . | . . . . Scanalyzers . | . . . . Garrison Access . | . . . . Terminal Hacks . | . . . . Fabricator Hacks . | . . . . Repair Station Hacks . | . . . . Recycling Unit Hacks . | . . . . Scanalyzer . | . . . . Garrison Access Hacks . | . . . . Unauthorized Hacks . | . . . . Terminals . | . . . . Fabricators . | . . . . Repair Stations . | . . . . Recycling Units . | . . . . Scanalyzers . | . . . . Garrison Access . | . . . . Data Cores Recovered . | . . . . Used . | . . . . Hacking Detections . | . . . . Full Trace Events . | . . . . Feedback Events . | . . . . Feedback Blocked . | . . . . Robot Schematics Acquired . | . . . . Robots Built . | . . . . Authchips . | . . . . Time . | . . . . Total Robot Build Rating . | . . . . Part Schematics Acquired . | . . . . Parts Built . | . . . . Authchips . | . . . . Time . | . . . . Total Part Build Rating . | . . . . Part Studies Acquired . | . . . . Parts Repaired . | . . . . Time . | . . . . Parts Recycled . | . . . . Recycled Matter . | . . . . Retrieved Matter . | . . . . Retrieved Components . | . . . . Parts Scanalyzed . | . . . . Part Schematics Acquired . | . . . . Parts Damaged . | . . . . Bothacking | -11 -10 -10 -8 ------------ Run | Yrd Mat Sub Mat Used RIF Installer . | . . . . Robots Hacked . | . . . . Non-combat . | . . . . Combat . | . . . . Robot Hacks Applied . | . . . . Relay Couplers Released . | . . . . Fabnet Peak Effective % . | . . . . Robots Rewired . | . . . . Allies Hacked . | . . . . Hacks Repelled . | . . . . Allies | -11 -10 -10 -8 -------- Run | Yrd Mat Sub Mat Total Allies . | . . . . Largest Group . | . . . . Highest-Rated Group . | . . . . Highest-Rated Ally . | . . . . Total Orders . | . . . . Ally Attacks . | . . . . Total Damage . | . . . . Kills . | . . . . Allies Corrupted . | . . . . Allies Melted . | . . . . Intel | -11 -10 -10 -8 ------- Run | Yrd Mat Sub Mat Active Infowar (turns) 2578 | 45 179 2354 . Seismic 2578 | 45 179 2354 . Robot Analysis Total . | . . . . Derelict Logs Recovered 1 | . . 1 . Drone Launches . | . . . . Drone Recoveries . | . . . . Exploration | -11 -10 -10 -8 ------------- Run | Yrd Mat Sub Mat Turns Passed 2812 | 122 179 2511 . Spaces Moved 1553 | 68 110 1375 . Core 2 | 2 . . . Treads 1551 | 66 110 1375 . Legs . | . . . . Wheels . | . . . . Hover . | . . . . Flight . | . . . . Fastest Speed 50 | 50 160 160 . Average Speed 162 | 156 160 163 . Slowest Speed 260 | 160 160 260 . Overloaded Moves . | . . . . Propulsion Burnouts . | . . . . Robots Hopped . | . . . . Potential Cave-ins . | . . . . Cave-ins Triggered . | . . . . Exploration Rate (%) 27 | 6 14 62 . Regions Visited 3 Branch Regions 1 Pre-discovered Areas . | . . . . Known Exits Taken . | . . . . Unknown Exits Taken 3 | 1 1 1 . Scrap Searched 5 | . . 5 . Spaces Dug . | . . . . Terrain Destroyed 5 | 5 . . . Melee . | . . . . Projectile . | . . . . AOE 5 | 5 . . . Terrain Rammed . | . . . . Walls Destroyed . | . . . . Machines Disabled . | . . . . Actions | -11 -10 -10 -8 --------- Run | Yrd Mat Sub Mat Total 1729 | 78 113 1538 . Wait 50 | . . 50 . Move 1550 | 67 109 1374 . Hop . | . . . . Pick Up 29 | 3 4 22 . Fast Attach 10 | 7 . 3 . Attach 12 | . . 12 . Detach 6 | . . 6 . Swap 2 | . . 2 . Drop 12 | . . 12 . Fire 58 | 1 . 57 . Melee . | . . . . Ram . | . . . . Kick . | . . . . Crush . | . . . . Escape Stasis . | . . . . Rewire . | . . . . Trap . | . . . . Miscellaneous . | . . . . Route ------- -11/Scrapyard -10/Materials -10/Subcaves (discovered 2 exits: [*Mat x2]) -8/Materials History --------- Turn | Location | Event 20 | -11/Scrapyard | Discovered new exit (range 15) 123 | -11/Scrapyard | Entered Materials 294 | -10/Materials | Discovered new exit (range 6) 302 | -10/Materials | Entered Subcaves 314 | -10/Subcaves | Build established: Mutant 347 | -10/Subcaves | Learned Materials trap positions 353 | -10/Subcaves | Shifting Twisted Machinery released Spk. Treads 355 | -10/Subcaves | Shifting Twisted Machinery released Battle Cannon 641 | -10/Subcaves | Discovered new exit (range 16) 961 | -10/Subcaves | Core integrity fell below 50% 1086 | -10/Subcaves | Shifting Twisted Machinery released Piercing Trap 1165 | -10/Subcaves | Shifting Twisted Machinery released Spk. Treads 1908 | -10/Subcaves | A swath of the cavern ceiling suddenly collapsed 2358 | -10/Subcaves | Ambushed by Subdwellers from Twisted Machinery 2383 | -10/Subcaves | Core integrity fell below 20% 2409 | -10/Subcaves | Build established: Derelict-Mutant 2512 | -10/Subcaves | Discovered new exit (range 6) 2785 | -10/Subcaves | Build established: Mutant 2813 | -10/Subcaves | Entered Materials 2813 | -8/Materials | Evolved 4 slots: Propulsion x1, Utility x3 2813 | -8/Materials | Self-destructed Last Messages --------------- 02392_ Acquired Seismic Detector. 02393_ EO-2N4(R) destroyed. 02400_ Subatomizers dissect the Sub. Power Source. 02404_ Acquired Sub. Monowheel. 02405_ Acquired 1 matter. 02410_ Acquired 9 matter. 02413_ Subatomizers dissect the Sub. Power Source. 02503_ Dropped Mak. Light Armor Plating. 02505_ Acquired Mak. Light Armor Plating. 02512_ EXIT=FOUND 02515_ Subatomizers dissect the Wheel. 02600_ Acquired 56 matter. 02603_ Subatomizers dissect the Disposable Heat Sink. 02764_ Dropped Spk. Treads. PARAMETERS=PROPULSION+1,UTILITY+3 LOCATION=UNKNOWN GOAL=ESCAPE Map ----- +----------------------------------------------------+ | | | | | | | | | | | | | | | | | | | | | | | | | | | | | | | | | | | | | ???????????????????????????????????????? | | ???????????????????????????????????????? | | ???????????????????????????????????????? | | ???????????????????????????????????????? | | ???????????????????????????????????????? | | ?????????????#########?????????????????? | | ?????????????# #?????????????????? | | ?????????????# @ +?????????????????? | | ?????????????# #?????????????????? | | ?????????????##### #?????????????????? | | ??????????????????? #?????????????????? | | ???????????????????? #?????????????????? | | ???????????????????????????????????????? | | ???????????????????????????????????????? | | ???????????????????????????????????????? | | ???????????????????????????????????????? | | ???????????????????????????????????????? | | ???????????????????????????????????????? | | ???????????????????????????????????????? | | ???????????????????????????????????????? | | ???????????????????????????????????????? | | ???????????????????????????????????????? | | ???????????????????????????????????????? | | ???????????????????????????????????????? | | ???????????????????????????????????????? | | ???????????????????????????????????????? | | ???????????????????????????????????????? | | ???????????????????????????????????????? | | ???????????????????????????????????????? | | ???????????????????????????????????????? | | ???????????????????????????????????????? | | ???????????????????????????????????????? | +----------------------------------------------------+ Best States ------------- Heat Dissipation 25 Energy Generation 15 Energy Capacity 200 Matter Stores 300 Matter Capacity 300 Sight Range 16 Terrain Scan Density 10 Armor Coverage 100 Evasion (%) 40 Recoil Reduction 2 Item Schematics ----------------- None Robot Schematics ------------------ None Fabricated ------------ Nothing Repaired ---------- Nothing Studied --------- None Alien Tech Used ----------------- None Achievements -------------- None Challenges ------------ None Game ------ Seed MultinovaChainPod Manual? 0 Play Time 00:13:58 Cumulative 28.6 hours Start 2026.07.05 @ 15:56:53 End 2026.07.05 @ 16:10:48 Sessions 1 Manual Loads 0 Difficulty Rogue Special Mode None Game No. 33 Rogue 33 Adventurer 0 Explorer 0 Win Type - Total 1 Types 1/0/0/0/0/0/0/0/0/0 Lore% 20 Gallery% 27 Achievement% 24 Wizard Run 0 Options --------- Layout 1 ASCII 0 Keyboard 1 Movement Numpad Keybinds 1 Fullscreen 2 Font 24/Smallcaps Map View 50x40 Zoom Use 0% Tactical HUD 1 Map Filters NONE Filters NONE Steam 1 RUN: df9b493e-9cba-4854-bb5d-856d9eb70974